fUST/lending_fUST_20250724
["ID","MTS","AMOUNT","RATE_DAILY","PERIOD"]
[374558383,1753353053785,-460.0,0.00020273,2]
[374558384,1753353053794,-460.0,0.00020273,2]
[374558385,1753353053803,-460.0,0.00020273,2]
[374558386,1753353053813,-460.0,0.00020273,2]
[374558387,1753353053823,-460.0,0.00020273,2]
[374558388,1753353053832,-1883.5,0.00020273,2]
[374558389,1753353053842,-460.0,0.00020273,2]
[374558390,1753353053851,-460.0,0.00020273,2]
[374558391,1753353053860,-460.0,0.00020273,2]
[374558392,1753353053871,-469.18363029,0.00020273,2]
[374558393,1753353053881,-460.0,0.00020273,2]
[374558394,1753353053890,-524.25,0.00020273,2]
[374558395,1753353053900,-495.41995814,0.00020273,2]
[374558396,1753353053909,-460.0,0.00020273,2]
[374558397,1753353053919,-460.0,0.00020273,2]
[374558398,1753353053928,-424.25015195,0.00020273,2]
[374558399,1753353053938,-460.0,0.00020273,2]
[374558400,1753353053947,-460.0,0.00020273,2]
[374558401,1753353053956,-430.27128955,0.00020273,2]
[374558402,1753353053966,-188.5140922,0.00020273,2]
[374558403,1753353053975,-460.0,0.00020273,2]
[374558404,1753353053985,-460.0,0.00020273,2]
[374558405,1753353053993,-460.0,0.00020273,2]
[374558406,1753353054142,-460.0,0.00020273,2]
[374558407,1753353054153,-460.0,0.00020273,2]
[374558408,1753353054163,-460.0,0.00020273,2]
[374558409,1753353054172,-219.82330503,0.00020273,2]
[374558410,1753353054181,-460.0,0.00020273,2]
[374558411,1753353054191,-436.81233458,0.00020273,2]
[374558412,1753353054200,-460.0,0.00020273,2]
[374558413,1753353054210,-460.0,0.00020273,2]
[374558414,1753353054220,-466.98934807,0.00020273,2]
[374558415,1753353054230,-460.0,0.00020273,2]
[374558416,1753353054240,-460.0,0.00020273,2]
[374558417,1753353054250,-1956.02,0.00020273,2]
[374558418,1753353054259,-460.0,0.00020273,2]
[374558419,1753353054269,-460.0,0.00020273,2]
[374558420,1753353054279,-460.0,0.00020273,2]
[374558421,1753353054289,-460.0,0.00020273,2]
[374558422,1753353054304,-460.0,0.00020273,2]
[374558423,1753353054320,-460.0,0.00020273,2]
[374558424,1753353054330,-460.0,0.00020273,2]
[374558425,1753353054339,-460.0,0.00020273,2]
[374558426,1753353054349,-460.0,0.00020273,2]
[374558427,1753353054359,-460.0,0.00020273,2]
[374558428,1753353054370,-256.58209565,0.00020273,2]
[374558429,1753353054379,-460.0,0.00020273,2]
[374558430,1753353054389,-460.0,0.00020273,2]
[374558431,1753353054398,-401.59395468,0.00020273,2]
[374558432,1753353054408,-460.0,0.00020273,2]
[374558433,1753353054417,-460.0,0.00020273,2]
[374558434,1753353054427,-460.0,0.00020273,2]
[374558435,1753353054437,-460.0,0.00020273,2]
[374558436,1753353054446,-460.0,0.00020273,2]
[374558437,1753353054456,-460.0,0.00020273,2]
[374558438,1753353054465,-460.0,0.00020273,2]
[374558439,1753353054475,-1300.47,0.00020273,2]
[374558440,1753353054485,-460.0,0.00020273,2]
[374558441,1753353054495,-460.0,0.00020273,2]
[374558442,1753353054504,-460.0,0.00020273,2]
[374558443,1753353054514,-460.0,0.00020273,2]
[374558444,1753353054523,-460.0,0.00020273,2]
[374558445,1753353054533,-460.0,0.00020273,2]
[374558446,1753353054543,-462.93405833,0.00020273,2]
[374558447,1753353054552,-460.0,0.00020273,2]
[374558448,1753353054561,-383.08557174,0.00020273,2]
[374558449,1753353054571,-1185.16,0.00020273,2]
[374558450,1753353054580,-460.0,0.00020273,2]
[374558451,1753353054591,-460.0,0.00020273,2]
[374558452,1753353054600,-460.0,0.00020273,2]
[374558453,1753353054610,-460.0,0.00020273,2]
[374558454,1753353054620,-2933.9,0.00020273,2]
[374558455,1753353054630,-460.0,0.00020273,2]
[374558456,1753353054640,-287.50273417,0.00020273,2]
[374558457,1753353054650,-460.0,0.00020273,2]
[374558458,1753353054659,-460.0,0.00020273,2]
[374558459,1753353054669,-460.0,0.00020273,2]
[374558460,1753353054678,-985.46,0.00020273,2]
[374558461,1753353054688,-810.12,0.00020273,2]
[374558462,1753353054698,-460.0,0.00020273,2]
[374558463,1753353054707,-460.0,0.00020273,2]
[374558464,1753353054716,-460.0,0.00020273,2]
[374558465,1753353054726,-460.0,0.00020273,2]
[374558466,1753353054735,-460.0,0.00020273,2]
[374558467,1753353054745,-600.78355117,0.00020273,2]
[374558468,1753353054755,-460.0,0.00020273,2]
[374558469,1753353054764,-739.46,0.00020273,2]
[374558470,1753353054774,-477.9,0.00020273,2]
[374558471,1753353054783,-460.0,0.00020273,2]
[374558472,1753353054793,-583.09,0.00020273,2]
[374558473,1753353054803,-460.0,0.00020273,2]
[374558474,1753353054812,-460.0,0.00020273,2]
[374558475,1753353054822,-236.55727065,0.00020273,2]
[374558476,1753353054831,-460.0,0.00020273,2]
[374558477,1753353054841,-460.0,0.00020273,2]
[374558478,1753353054850,-460.0,0.00020273,2]
[374558479,1753353054860,-530.36,0.00020273,2]
[374558480,1753353054871,-1634.08,0.00020273,2]
[374558481,1753353054881,-460.0,0.00020273,2]
[374558482,1753353054891,-460.0,0.00020273,2]
[374558483,1753353054900,-460.0,0.00020273,2]
[374558484,1753353054910,-460.0,0.00020273,2]
[374558485,1753353054920,-1390.29,0.00020273,2]
[374558486,1753353054930,-460.0,0.00020273,2]
[374558487,1753353054939,-460.0,0.00020273,2]
[374558488,1753353054948,-460.0,0.00020273,2]
[374558489,1753353054958,-460.0,0.00020273,2]
[374558490,1753353054967,-462.44,0.00020273,2]
[374558491,1753353054977,-550.96,0.00020273,2]
[374558492,1753353054986,-1060.41,0.00020273,2]
[374558493,1753353054996,-460.0,0.00020273,2]
[374558494,1753353055006,-2774.82,0.00020273,2]
[374558495,1753353055016,-460.0,0.00020273,2]
[374558496,1753353055026,-1086.16,0.00020273,2]
[374558497,1753353055035,-2045.17,0.00020273,2]
[374558498,1753353055045,-460.0,0.00020273,2]
[374558499,1753353055059,-1266.48,0.00020273,2]
[374558500,1753353055069,-460.0,0.00020273,2]
[374558501,1753353055078,-1080.21,0.00020273,2]
[374558502,1753353055087,-460.0,0.00020273,2]
[374558503,1753353055098,-460.0,0.00020273,2]
[374558504,1753353055107,-460.0,0.00020273,2]
[374558505,1753353055116,-460.0,0.00020273,2]
[374558506,1753353055130,-460.0,0.00020273,2]
[374558507,1753353055139,-460.0,0.00020273,2]
[374558508,1753353055148,-431.28408128,0.00020273,2]
[374558509,1753353055157,-1755.56944437,0.00020314,3]
[374558510,1753353055167,-500.0,0.00020521,2]
[374558511,1753353055175,-1000.0,0.00020521,2]
[374558512,1753353055184,-649.91416204,0.00020521,2]
[374558513,1753353055194,-1755.56944437,0.00020521,3]
[374558514,1753353055203,-180.0,0.00020541,2]
[374558515,1753353055212,-460.0,0.00020547,2]
[374558516,1753353055223,-609.33349538,0.00020547,2]
[374558517,1753353055232,-460.0,0.00020547,2]
[374558518,1753353055241,-460.0,0.00020547,2]
[374558519,1753353055250,-460.0,0.00020547,2]
[374558520,1753353055260,-460.0,0.00020547,2]
[374558521,1753353055270,-460.0,0.00020547,2]
[374558522,1753353055280,-198.63087513,0.00020547,2]
[374558523,1753353055289,-460.0,0.00020547,2]
[374558524,1753353055299,-460.0,0.00020547,2]
[374558525,1753353055308,-460.0,0.00020547,2]
[374558526,1753353055318,-460.0,0.00020547,2]
[374558527,1753353055327,-460.0,0.00020547,2]
[374558528,1753353055336,-460.0,0.00020547,2]
[374558529,1753353055346,-460.0,0.00020547,2]
[374558530,1753353055355,-460.0,0.00020547,2]
[374558531,1753353055364,-460.0,0.00020547,2]
[374558532,1753353055375,-460.0,0.00020547,2]
[374558533,1753353055384,-460.0,0.00020547,2]
[374558534,1753353055393,-460.0,0.00020547,2]
[374558535,1753353055403,-460.0,0.00020547,2]
[374558536,1753353055412,-460.0,0.00020547,2]
[374558537,1753353055421,-460.0,0.00020547,2]
[374558538,1753353055430,-460.0,0.00020547,2]
[374558539,1753353055439,-460.0,0.00020547,2]
[374558540,1753353055450,-239.59739498,0.00020547,2]
[374558541,1753353055461,-460.0,0.00020547,2]
[374558542,1753353055472,-460.0,0.00020547,2]
[374558543,1753353055483,-460.0,0.00020547,2]
[374558544,1753353055492,-460.0,0.00020547,2]
[374558545,1753353055502,-1883.5,0.00020547,2]
[374558546,1753353055511,-460.0,0.00020547,2]
[374558547,1753353055520,-396.69424928,0.00020547,2]
[374558548,1753353055529,-460.0,0.00020547,2]
[374558549,1753353055539,-524.25,0.00020547,2]
[374558550,1753353055548,-460.0,0.00020547,2]
[374558551,1753353055558,-460.0,0.00020547,2]
[374558552,1753353055567,-460.0,0.00020547,2]
[374558553,1753353055577,-460.0,0.00020547,2]
[374558554,1753353055586,-460.0,0.00020547,2]
[374558555,1753353055595,-460.0,0.00020547,2]
[374558556,1753353055605,-460.0,0.00020547,2]
[374558557,1753353055615,-460.0,0.00020547,2]
[374558558,1753353055626,-460.0,0.00020547,2]
[374558559,1753353055636,-397.99319594,0.00020547,2]
[374558560,1753353055646,-460.0,0.00020547,2]
[374558561,1753353055655,-460.0,0.00020547,2]
[374558562,1753353055665,-460.0,0.00020547,2]
[374558563,1753353055674,-460.0,0.00020547,2]
[374558564,1753353055684,-460.0,0.00020547,2]
[374558565,1753353055694,-1956.02,0.00020547,2]
[374558566,1753353055704,-460.0,0.00020547,2]
[374558567,1753353055713,-460.0,0.00020547,2]
[374558568,1753353055722,-589.76,0.00020547,2]
[374558569,1753353055731,-460.0,0.00020547,2]
[374558570,1753353055741,-460.0,0.00020547,2]
[374558571,1753353055750,-460.0,0.00020547,2]
[374558572,1753353055760,-460.0,0.00020547,2]
[374558573,1753353055770,-460.0,0.00020547,2]
[374558574,1753353055779,-460.0,0.00020547,2]
[374558575,1753353055789,-460.0,0.00020547,2]
[374558576,1753353055799,-460.0,0.00020547,2]
[374558577,1753353055810,-460.0,0.00020547,2]
[374558578,1753353055820,-460.0,0.00020547,2]
[374558579,1753353055829,-460.0,0.00020547,2]
[374558580,1753353055839,-460.0,0.00020547,2]
[374558581,1753353055849,-460.0,0.00020547,2]
[374558582,1753353055860,-460.0,0.00020547,2]
[374558583,1753353055869,-460.0,0.00020547,2]
[374558584,1753353055879,-1300.47,0.00020547,2]
[374558585,1753353055888,-454.07165622,0.00020547,2]
[374558586,1753353055898,-460.0,0.00020547,2]
[374558587,1753353055908,-460.0,0.00020547,2]
[374558588,1753353055918,-460.0,0.00020547,2]
[374558589,1753353055927,-460.0,0.00020547,2]
[374558590,1753353055937,-460.0,0.00020547,2]
[374558591,1753353055947,-460.0,0.00020547,2]
[374558592,1753353055956,-1185.16,0.00020547,2]
[374558593,1753353055966,-460.0,0.00020547,2]
[374558594,1753353055976,-460.0,0.00020547,2]
[374558595,1753353055986,-460.0,0.00020547,2]
[374558596,1753353055995,-460.0,0.00020547,2]
[374558597,1753353056005,-2933.9,0.00020547,2]
[374558598,1753353056014,-463.93000571,0.00020547,2]
[374558599,1753353056024,-460.0,0.00020547,2]
[374558600,1753353056034,-460.0,0.00020547,2]
[374558601,1753353056043,-478.60210185,0.00020547,2]
[374558602,1753353056055,-810.12,0.00020547,2]
[374558603,1753353056064,-985.46,0.00020547,2]
[374558604,1753353056074,-460.0,0.00020547,2]
[374558605,1753353056083,-460.0,0.00020547,2]
[374558606,1753353056093,-460.0,0.00020547,2]
[374558607,1753353056103,-460.0,0.00020547,2]
[374558608,1753353056113,-460.0,0.00020547,2]
[374558609,1753353056123,-739.46,0.00020547,2]
[374558610,1753353056134,-460.0,0.00020547,2]
[374558611,1753353056144,-583.09,0.00020547,2]
[374558612,1753353056154,-460.0,0.00020547,2]
[374558613,1753353056163,-460.0,0.00020547,2]
[374558614,1753353056174,-460.0,0.00020547,2]
[374558615,1753353056182,-460.0,0.00020547,2]
[374558616,1753353056192,-460.0,0.00020547,2]
[374558617,1753353056202,-1634.08,0.00020547,2]
[374558618,1753353056212,-460.0,0.00020547,2]
[374558619,1753353056222,-460.0,0.00020547,2]
[374558620,1753353056232,-460.0,0.00020547,2]
[374558621,1753353056243,-1390.29,0.00020547,2]
[374558622,1753353056253,-460.0,0.00020547,2]
[374558623,1753353056263,-460.0,0.00020547,2]
[374558624,1753353056272,-462.44,0.00020547,2]
[374558625,1753353056282,-550.96,0.00020547,2]
[374558626,1753353056292,-1060.41,0.00020547,2]
[374558627,1753353056301,-460.0,0.00020547,2]
[374558628,1753353056311,-2774.82,0.00020547,2]
[374558629,1753353056320,-460.0,0.00020547,2]
[374558630,1753353056330,-1086.16,0.00020547,2]
[374558631,1753353056339,-2045.17,0.00020547,2]
[374558632,1753353056349,-460.0,0.00020547,2]
[374558633,1753353056358,-460.0,0.00020547,2]
[374558634,1753353056367,-1266.48,0.00020547,2]
[374558635,1753353056379,-1080.21,0.00020547,2]
[374558636,1753353056388,-460.0,0.00020547,2]
[374558637,1753353056398,-460.0,0.00020547,2]
[374558638,1753353056407,-460.0,0.00020547,2]
[374558639,1753353056417,-460.0,0.00020547,2]
[374558640,1753353056426,-460.0,0.00020547,2]
[374558641,1753353056436,-460.0,0.00020547,2]
[374558642,1753353056445,-231.16387093,0.00020645,2]
[374558643,1753353056456,-160.0,0.00020645,2]
[374558644,1753353056465,-840.23756827,0.00020645,2]
[374558645,1753353056475,-526.24749348,0.00020645,2]
[374558646,1753353056484,-160.0,0.00020645,2]
[374558647,1753353056493,-160.0,0.00020645,2]
[374558648,1753353056504,-160.0,0.00020645,2]
[374558649,1753353056513,-215.88777038,0.00020645,2]
[374558650,1753353056522,-160.0,0.00020645,2]
[374558651,1753353056532,-151.0,0.00020649,2]
[374558652,1753353056541,-151.0,0.00020649,2]
[374558653,1753353056550,-151.0,0.00020649,2]
[374558654,1753353056560,-151.0,0.00020649,2]
[374558655,1753353056569,-317.245903,0.00020649,2]
[374558656,1753353056578,-317.245903,0.00020649,2]
[374558657,1753353056587,-151.0,0.00020649,2]
[374558658,1753353056596,-151.0,0.00020649,2]
[374558659,1753353056607,-1755.56944437,0.00020728,3]
[374558660,1753353056616,-658.728642,0.00020821,2]
[374558661,1753353056627,-460.0,0.00020821,2]
[374558662,1753353056636,-460.0,0.00020821,2]
[374558663,1753353056644,-151.0,0.00020821,2]
[374558664,1753353056654,-355.33495529,0.00020821,2]
[374558665,1753353056663,-151.0,0.00020821,2]
[374558666,1753353056673,-151.0,0.00020821,2]
[374558667,1753353056683,-151.0,0.00020821,2]
[374558668,1753353056692,-460.0,0.00020821,2]
[374558669,1753353056703,-460.0,0.00020821,2]
[374558670,1753353056712,-460.0,0.00020821,2]
[374558671,1753353056722,-460.0,0.00020821,2]
[374558672,1753353056731,-460.0,0.00020821,2]
[374558673,1753353056741,-460.0,0.00020821,2]
[374558674,1753353056752,-460.0,0.00020821,2]
[374558675,1753353056761,-460.0,0.00020821,2]
[374558676,1753353056771,-151.0,0.00020821,2]
[374558677,1753353056781,-151.0,0.00020821,2]
[374558678,1753353056790,-460.0,0.00020821,2]
[374558679,1753353056800,-460.0,0.00020821,2]
[374558680,1753353056810,-576.90476889,0.00020821,2]
[374558681,1753353056819,-460.0,0.00020821,2]
[374558682,1753353056829,-460.0,0.00020821,2]
[374558683,1753353056839,-460.0,0.00020821,2]
[374558684,1753353056848,-460.0,0.00020821,2]
[374558685,1753353056858,-460.0,0.00020821,2]
[374558686,1753353056867,-460.0,0.00020821,2]
[374558687,1753353056877,-460.0,0.00020821,2]
[374558688,1753353056886,-460.0,0.00020821,2]
[374558689,1753353056895,-1883.5,0.00020821,2]
[374558690,1753353056905,-460.0,0.00020821,2]
[374558691,1753353056914,-460.0,0.00020821,2]
[374558692,1753353056924,-524.25,0.00020821,2]
[374558693,1753353056933,-460.0,0.00020821,2]
[374558694,1753353056943,-460.0,0.00020821,2]
[374558695,1753353056952,-460.0,0.00020821,2]
[374558696,1753353056961,-460.0,0.00020821,2]
[374558697,1753353056971,-460.0,0.00020821,2]
[374558698,1753353056981,-460.0,0.00020821,2]
[374558699,1753353056990,-460.0,0.00020821,2]
[374558700,1753353056999,-460.0,0.00020821,2]
[374558701,1753353057010,-460.0,0.00020821,2]
[374558702,1753353057020,-460.0,0.00020821,2]
[374558703,1753353057029,-460.0,0.00020821,2]
[374558704,1753353057039,-460.0,0.00020821,2]
[374558705,1753353057049,-460.0,0.00020821,2]
[374558706,1753353057062,-1956.02,0.00020821,2]
[374558707,1753353057071,-460.0,0.00020821,2]
[374558708,1753353057081,-460.0,0.00020821,2]
[374558709,1753353057090,-460.0,0.00020821,2]
[374558710,1753353057101,-580.70053603,0.00020821,2]
[374558711,1753353057110,-460.0,0.00020821,2]
[374558712,1753353057119,-460.0,0.00020821,2]
[374558713,1753353057129,-460.0,0.00020821,2]
[374558714,1753353057139,-460.0,0.00020821,2]
[374558715,1753353057148,-460.0,0.00020821,2]
[374558716,1753353057158,-460.0,0.00020821,2]
[374558717,1753353057167,-460.0,0.00020821,2]
[374558718,1753353057336,-460.0,0.00020821,2]
[374558719,1753353057363,-460.0,0.00020821,2]
[374558720,1753353057374,-460.0,0.00020821,2]
[374558721,1753353057383,-460.0,0.00020821,2]
[374558722,1753353057393,-460.0,0.00020821,2]
[374558723,1753353057402,-1300.47,0.00020821,2]
[374558724,1753353057412,-460.0,0.00020821,2]
[374558725,1753353057421,-460.0,0.00020821,2]
[374558726,1753353057430,-460.0,0.00020821,2]
[374558727,1753353057440,-460.0,0.00020821,2]
[374558728,1753353057449,-197.17826598,0.00020821,2]
[374558729,1753353057458,-460.0,0.00020821,2]
[374558730,1753353057467,-1185.16,0.00020821,2]
[374558731,1753353057477,-460.0,0.00020821,2]
[374558732,1753353057486,-460.0,0.00020821,2]
[374558733,1753353057496,-460.0,0.00020821,2]
[374558734,1753353057506,-460.0,0.00020821,2]
[374558735,1753353057515,-2933.9,0.00020821,2]
[374558736,1753353057525,-460.0,0.00020821,2]
[374558737,1753353057535,-460.0,0.00020821,2]
[374558738,1753353057545,-810.12,0.00020821,2]
[374558739,1753353057554,-985.46,0.00020821,2]
[374558740,1753353057564,-460.0,0.00020821,2]
[374558741,1753353057573,-460.0,0.00020821,2]
[374558742,1753353057582,-460.0,0.00020821,2]
[374558743,1753353057592,-460.0,0.00020821,2]
[374558744,1753353057601,-460.0,0.00020821,2]
[374558745,1753353057611,-739.46,0.00020821,2]
[374558746,1753353057620,-460.0,0.00020821,2]
[374558747,1753353057629,-583.09,0.00020821,2]
[374558748,1753353057638,-460.0,0.00020821,2]
[374558749,1753353057648,-460.0,0.00020821,2]
[374558750,1753353057658,-460.0,0.00020821,2]
[374558751,1753353057667,-460.0,0.00020821,2]
[374558752,1753353057677,-460.0,0.00020821,2]
[374558753,1753353057687,-1634.08,0.00020821,2]
[374558754,1753353057696,-460.0,0.00020821,2]
[374558755,1753353057705,-460.0,0.00020821,2]
[374558756,1753353057715,-460.0,0.00020821,2]
[374558757,1753353057724,-1390.29,0.00020821,2]
[374558758,1753353057733,-386.60072505,0.00020821,2]
[374558759,1753353057744,-460.0,0.00020821,2]
[374558760,1753353057753,-462.44,0.00020821,2]
[374558761,1753353057763,-550.96,0.00020821,2]
[374558762,1753353057772,-1060.41,0.00020821,2]
[374558763,1753353057782,-460.0,0.00020821,2]
[374558764,1753353057791,-2774.82,0.00020821,2]
[374558765,1753353057801,-460.0,0.00020821,2]
[374558766,1753353057811,-1086.16,0.00020821,2]
[374558767,1753353057821,-2045.17,0.00020821,2]
[374558768,1753353057831,-460.0,0.00020821,2]
[374558769,1753353057842,-1266.48,0.00020821,2]
[374558770,1753353057856,-1080.21,0.00020821,2]
[374558771,1753353057867,-460.0,0.00020821,2]
[374558772,1753353057879,-460.0,0.00020821,2]
[374558773,1753353057889,-544.04902487,0.00020821,2]
[374558774,1753353057899,-460.0,0.00020821,2]
[374558775,1753353057908,-460.0,0.00020821,2]
[374558776,1753353057917,-460.0,0.00020821,2]
[374558777,1753353057927,-480.834,0.00020888,2]
[374558778,1753353057936,-420.0,0.00020896,2]
[374558779,1753353057947,-1755.56944437,0.00020934,4]
[374558780,1753353057956,-585.0,0.00020997,2]
[374558781,1753353057966,-741.14122082,0.00021,2]
[374558782,1753353057976,-500.0,0.00021064,2]
[374558783,1753353057986,-1500.0,0.00021068,2]
[374558784,1753353057996,-460.0,0.00021095,2]
[374558785,1753353058005,-460.0,0.00021095,2]
[374558786,1753353058015,-460.0,0.00021095,2]
[374558787,1753353058024,-460.0,0.00021095,2]
[374558788,1753353058034,-460.0,0.00021095,2]
[374558789,1753353058043,-460.0,0.00021095,2]
[374558790,1753353058055,-460.0,0.00021095,2]
[374558791,1753353058065,-199.90650771,0.00021095,2]
[374558792,1753353058075,-460.0,0.00021095,2]
[374558793,1753353058085,-392.81770239,0.00021095,2]
[374558794,1753353058095,-465.05905235,0.00021095,2]
[374558795,1753353058105,-460.0,0.00021095,2]
[374558796,1753353058115,-460.0,0.00021095,2]
[374558797,1753353058126,-460.0,0.00021095,2]
[374558798,1753353058136,-276.56091141,0.00021095,2]
[374558799,1753353058147,-460.0,0.00021095,2]
[374558800,1753353058156,-460.0,0.00021095,2]
[374558801,1753353058165,-460.0,0.00021095,2]
[374558802,1753353058175,-460.0,0.00021095,2]
[374558803,1753353058185,-460.0,0.00021095,2]
[374558804,1753353058194,-1883.5,0.00021095,2]
[374558805,1753353058204,-460.0,0.00021095,2]
[374558806,1753353058214,-460.0,0.00021095,2]
[374558807,1753353058224,-524.25,0.00021095,2]
[374558808,1753353058234,-460.0,0.00021095,2]
[374558809,1753353058243,-460.0,0.00021095,2]
[374558810,1753353058252,-460.0,0.00021095,2]
[374558811,1753353058262,-460.0,0.00021095,2]
[374558812,1753353058271,-460.0,0.00021095,2]
[374558813,1753353058280,-460.0,0.00021095,2]
[374558814,1753353058290,-192.40003544,0.00021095,2]
[374558815,1753353058300,-460.0,0.00021095,2]
[374558816,1753353058312,-460.0,0.00021095,2]
[374558817,1753353058321,-460.0,0.00021095,2]
[374558818,1753353058331,-460.0,0.00021095,2]
[374558819,1753353058341,-1956.02,0.00021095,2]
[374558820,1753353058350,-460.0,0.00021095,2]
[374558821,1753353058360,-408.1429084,0.00021095,2]
[374558822,1753353058370,-460.0,0.00021095,2]
[374558823,1753353058380,-460.0,0.00021095,2]
[374558824,1753353058390,-460.0,0.00021095,2]
[374558825,1753353058399,-392.70825012,0.00021095,2]
[374558826,1753353058409,-460.0,0.00021095,2]
[374558827,1753353058418,-460.0,0.00021095,2]
[374558828,1753353058429,-460.0,0.00021095,2]
[374558829,1753353058438,-360.0,0.00021095,2]
[374558830,1753353058447,-460.0,0.00021095,2]
[374558831,1753353058458,-531.73,0.00021095,2]
[374558832,1753353058475,-460.0,0.00021095,2]
[374558833,1753353058492,-460.0,0.00021095,2]
[374558834,1753353058508,-1300.47,0.00021095,2]
[374558835,1753353058518,-460.0,0.00021095,2]
[374558836,1753353058528,-460.0,0.00021095,2]
[374558837,1753353058539,-460.0,0.00021095,2]
[374558838,1753353058550,-460.0,0.00021095,2]
[374558839,1753353058559,-460.0,0.00021095,2]
[374558840,1753353058568,-1185.16,0.00021095,2]
[374558841,1753353058578,-354.41743296,0.00021095,2]
[374558842,1753353058587,-460.0,0.00021095,2]
[374558843,1753353058597,-460.0,0.00021095,2]
[374558844,1753353058607,-2933.9,0.00021095,2]
[374558845,1753353058616,-460.0,0.00021095,2]
[374558846,1753353058627,-460.0,0.00021095,2]
[374558847,1753353058636,-810.12,0.00021095,2]
[374558848,1753353058646,-985.46,0.00021095,2]
[374558849,1753353058655,-460.0,0.00021095,2]
[374558850,1753353058665,-460.0,0.00021095,2]
[374558851,1753353058674,-460.0,0.00021095,2]
[374558852,1753353058684,-460.0,0.00021095,2]
[374558853,1753353058694,-739.46,0.00021095,2]
[374558854,1753353058703,-460.0,0.00021095,2]
[374558855,1753353058714,-583.09,0.00021095,2]
[374558856,1753353058723,-460.0,0.00021095,2]
[374558857,1753353058733,-460.0,0.00021095,2]
[374558858,1753353058743,-460.0,0.00021095,2]
[374558859,1753353058752,-460.0,0.00021095,2]
[374558860,1753353058762,-460.0,0.00021095,2]
[374558861,1753353058772,-1634.08,0.00021095,2]
[374558862,1753353058782,-460.0,0.00021095,2]
[374558863,1753353058792,-460.0,0.00021095,2]
[374558864,1753353058802,-460.0,0.00021095,2]
[374558865,1753353058812,-1390.29,0.00021095,2]
[374558866,1753353058822,-460.0,0.00021095,2]
[374558867,1753353058832,-462.44,0.00021095,2]
[374558868,1753353058842,-550.96,0.00021095,2]
[374558869,1753353058851,-1060.41,0.00021095,2]
[374558870,1753353058861,-460.0,0.00021095,2]
[374558871,1753353058871,-2774.82,0.00021095,2]
[374558872,1753353058881,-460.0,0.00021095,2]
[374558873,1753353058891,-1086.16,0.00021095,2]
[374558874,1753353058902,-2045.17,0.00021095,2]
[374558875,1753353058911,-460.0,0.00021095,2]
[374558876,1753353058921,-1266.48,0.00021095,2]
[374558877,1753353058932,-1080.21,0.00021095,2]
[374558878,1753353058941,-460.0,0.00021095,2]
[374558879,1753353058951,-209.98085329,0.00021095,2]
[374558880,1753353058961,-460.0,0.00021095,2]
[374558881,1753353058971,-460.0,0.00021095,2]
[374558882,1753353058981,-460.0,0.00021095,2]